fUSD/lending_fUSD_20240629
["ID","MTS","AMOUNT","RATE_DAILY","PERIOD"]
[330644753,1719684633621,-500.0,0.00013885,3]
[330644754,1719684633630,-570.03,0.00013885,3]
[330644755,1719684633639,-500.0,0.00013885,3]
[330644756,1719684633648,-500.0,0.00013885,3]
[330644757,1719684633657,-500.0,0.00013885,3]
[330644758,1719684633667,-500.0,0.00013885,3]
[330644759,1719684633676,-1269.56,0.00013885,3]
[330644760,1719684633685,-500.0,0.00013885,3]
[330644761,1719684633694,-1762.97,0.00013885,3]
[330644762,1719684633703,-500.0,0.00013885,3]
[330644763,1719684633713,-500.0,0.00013885,3]
[330644764,1719684633722,-500.0,0.00013885,3]
[330644765,1719684633731,-500.0,0.00013885,3]
[330644766,1719684633741,-500.0,0.00013885,3]
[330644767,1719684633750,-500.0,0.00013885,3]
[330644768,1719684633759,-500.0,0.00013885,3]
[330644769,1719684633769,-667.68,0.00013885,3]
[330644770,1719684633778,-965.33,0.00013885,3]
[330644771,1719684633788,-500.0,0.00013885,3]
[330644772,1719684633797,-500.0,0.00013885,3]
[330644773,1719684633807,-2580.42,0.00013885,3]
[330644774,1719684633816,-1922.55,0.00013885,3]
[330644775,1719684633825,-409.70995934,0.00013885,3]
[330644776,1719684633834,-500.0,0.00013885,3]
[330644777,1719684633844,-844.45,0.00013885,3]
[330644778,1719684633853,-2224.99,0.00013885,3]
[330644779,1719684633863,-500.0,0.00013885,3]
[330644780,1719684633872,-500.0,0.00013885,3]
[330644781,1719684633881,-500.0,0.00013885,3]
[330644782,1719684633890,-500.0,0.00013885,3]
[330644783,1719684633899,-974.0,0.00013885,3]
[330644784,1719684633908,-615.47,0.00013885,3]
[330644785,1719684633917,-1192.15,0.00013885,3]
[330644786,1719684633927,-500.0,0.00013885,3]
[330644787,1719684633937,-500.0,0.00013885,3]
[330644788,1719684633946,-1448.28,0.00013885,3]
[330644789,1719684633956,-745.79,0.00013885,3]
[330644790,1719684633966,-500.0,0.00013885,3]
[330644791,1719684633975,-2399.12,0.00013885,3]
[330644792,1719684633986,-1606.25,0.00013885,3]
[330644793,1719684633996,-512.57,0.00013885,3]
[330644794,1719684634005,-1061.34,0.00013885,3]
[330644795,1719684634015,-500.0,0.00013885,3]
[330644796,1719684634025,-1421.27,0.00013885,3]
[330644797,1719684634034,-1917.06,0.00013885,3]
[330644798,1719684634044,-500.0,0.00013885,3]
[330644799,1719684634054,-500.0,0.00013885,3]
[330644800,1719684634063,-1508.99,0.00013885,3]
[330644801,1719684634073,-500.0,0.00013885,3]
[330644802,1719684634082,-504.38,0.00013885,3]
[330644803,1719684634092,-1628.6,0.00013885,3]
[330644804,1719684634102,-876.26,0.00013885,3]
[330644805,1719684634112,-1470.96,0.00013885,3]
[330644806,1719684634121,-1641.91,0.00013885,3]
[330644807,1719684634131,-500.0,0.00013885,3]
[330644808,1719684634141,-500.0,0.00013885,3]
[330644809,1719684634151,-1092.98,0.00013885,3]
[330644810,1719684634161,-500.0,0.00013885,3]
[330644811,1719684634170,-533.93,0.00013885,3]
[330644812,1719684634179,-500.0,0.00013885,2]
[330644813,1719684634189,-563.4,0.00013885,3]
[330644814,1719684634198,-1360.3,0.00013885,3]
[330644815,1719684634208,-713.44,0.00013885,3]
[330644816,1719684634217,-629.7,0.00013885,3]
[330644817,1719684634228,-500.0,0.00013885,3]
[330644818,1719684634237,-1278.96,0.00013885,3]
[330644819,1719684634247,-500.0,0.00013885,3]
[330644820,1719684634257,-1771.26,0.00013885,3]
[330644821,1719684634266,-500.0,0.00013885,3]
[330644822,1719684634275,-500.0,0.00013885,3]
[330644823,1719684634285,-798.7,0.00013885,3]
[330644824,1719684634294,-500.0,0.00013885,3]
[330644825,1719684634305,-1060.98,0.00013885,3]
[330644826,1719684634314,-520.1,0.00013885,3]
[330644827,1719684634324,-500.0,0.00013885,3]
[330644828,1719684634333,-2364.15,0.00013885,3]
[330644829,1719684634343,-500.0,0.00013885,3]
[330644830,1719684634353,-500.0,0.00013885,3]
[330644831,1719684634362,-500.0,0.00013885,3]
[330644832,1719684634371,-500.0,0.00013885,3]
[330644833,1719684634381,-2463.84,0.00013885,3]
[330644834,1719684634391,-500.0,0.00013885,3]
[330644835,1719684634400,-7044.05,0.00013885,3]
[330644836,1719684634409,-4836.58,0.00013885,3]
[330644837,1719684634419,-922.18,0.00013885,3]
[330644838,1719684634428,-619.26,0.00013885,3]
[330644839,1719684634447,-1489.4,0.00013885,3]
[330644840,1719684634459,-598.78,0.00013885,3]
[330644841,1719684634472,-500.0,0.00013885,3]
[330644842,1719684634482,-5172.56,0.00013885,3]
[330644843,1719684634493,-500.0,0.00013885,3]
[330644844,1719684634503,-500.0,0.00013885,3]
[330644845,1719684634517,-651.33,0.00013885,3]
[330644846,1719684634528,-500.0,0.00013885,3]
[330644847,1719684634539,-12628.09,0.00013885,3]
[330644848,1719684634550,-500.0,0.00013885,3]
[330644849,1719684634561,-500.0,0.00013885,3]
[330644850,1719684634571,-500.0,0.00013885,3]
[330644851,1719684634581,-874.43,0.00013885,3]
[330644852,1719684634592,-656.3,0.00013885,3]
[330644853,1719684634604,-658.16,0.00013885,3]
[330644854,1719684634614,-25706.38,0.00013885,3]
[330644855,1719684634624,-500.0,0.00013885,3]
[330644856,1719684634634,-500.0,0.00013885,3]
[330644857,1719684634644,-699.72,0.00013885,3]
[330644858,1719684634654,-500.0,0.00013885,3]
[330644859,1719684634664,-2229.85,0.00013885,3]
[330644860,1719684634674,-541.23,0.00013885,3]
[330644861,1719684634685,-500.0,0.00013885,3]
[330644862,1719684634695,-1682.79,0.00013885,3]
[330644863,1719684634705,-1379.7,0.00013885,3]
[330644864,1719684634715,-1936.33,0.00013885,3]
[330644865,1719684634725,-595.25,0.00013885,3]
[330644866,1719684634735,-3322.6,0.00013885,3]
[330644867,1719684634745,-500.0,0.00013885,3]
[330644868,1719684634756,-5559.16,0.00013885,3]
[330644869,1719684634766,-500.0,0.00013885,3]
[330644870,1719684634776,-500.0,0.00013885,3]
[330644871,1719684634787,-500.0,0.00013885,3]
[330644872,1719684634797,-923.11,0.00013885,3]
[330644873,1719684634807,-500.0,0.00013885,3]
[330644874,1719684634818,-500.0,0.00013885,3]
[330644875,1719684634828,-3590.46,0.00013885,3]
[330644876,1719684634838,-501.79696739,0.00013885,3]
[330644877,1719684634848,-500.0,0.00013885,3]
[330644878,1719684634858,-651.56,0.00013885,3]
[330644879,1719684634868,-693.16,0.00013885,3]
[330644880,1719684634878,-1101.26,0.00013885,3]
[330644881,1719684634888,-3574.94,0.00013885,3]
[330644882,1719684634898,-2292.09,0.00013885,3]
[330644883,1719684634908,-500.0,0.00013885,3]
[330644884,1719684634919,-6971.81,0.00013885,3]
[330644885,1719684634928,-672.93,0.00013885,3]
[330644886,1719684634938,-6772.13,0.00013885,3]
[330644887,1719684634948,-656.99,0.00013885,3]
[330644888,1719684634963,-962.75,0.00013885,3]
[330644889,1719684634974,-1275.98,0.00013885,3]
[330644890,1719684634985,-159.28011769,0.00013885,3]
[330644891,1719684634995,-500.0,0.00013885,3]
[330644892,1719684635006,-724.52,0.00013885,3]
[330644893,1719684635017,-500.0,0.00013885,3]
[330644894,1719684635028,-832.46,0.00013885,3]
[330644895,1719684635039,-500.0,0.00013885,3]
[330644896,1719684635051,-500.0,0.00013885,3]
[330644897,1719684635061,-640.27,0.00013885,3]
[330644898,1719684635073,-795.67,0.00013885,3]
[330644899,1719684635087,-500.0,0.00013885,3]
[330644900,1719684635098,-3.94534377,0.00013885,3]
[330644901,1719684636547,-496.05465623,0.00013885,3]
[330644902,1719684636559,-699.76400004,0.00013885,3]
[330644903,1719684636571,-1344.78568796,0.00013885,3]
[330644904,1719684636583,-647.77,0.00013885,3]
[330644905,1719684636596,-850.40212826,0.00013885,3]
[330644906,1719684636609,-2155.35818374,0.00013885,3]
[330644907,1719684636618,-1578.61,0.00013885,3]
[330644908,1719684636629,-171.03822268,0.00013885,3]
[330644909,1719684636642,-328.96177732,0.00013885,3]
[330644910,1719684636652,-500.0,0.00013885,3]
[330644911,1719684636662,-296.61126961,0.00013885,3]
[330644912,1719684636674,-769.58873039,0.00013885,3]
[330644913,1719684636685,-319.2146606,0.00013885,3]
[330644914,1719684636697,-304.3253394,0.00013885,3]
[330644915,1719684636707,-491.2446706,0.00013885,3]
[330644916,1719684636719,-356.5353294,0.00013885,3]
[330644917,1719684636729,-272.53618887,0.00013885,3]
[330644918,1719684636741,-496.57381113,0.00013885,3]
[330644919,1719684636751,-500.0,0.00013885,3]
[330644920,1719684636761,-200.58296284,0.00013885,3]
[330644968,1719684638576,-348.89532083,0.00013884,3]
[330644970,1719684638588,-322.5152993,0.00013884,3]
[330644972,1719684638602,-549.67937987,0.00013884,3]
[330644974,1719684638612,-3331.29019088,0.00013885,3]
[330644976,1719684638624,-2220.02684628,0.00013885,3]
[330644979,1719684638634,-500.0,0.00013885,3]
[330644981,1719684638644,-2348.46,0.00013885,3]
[330644982,1719684638654,-1336.67,0.00013885,3]
[330644985,1719684638665,-500.0,0.00013885,3]
[330644987,1719684638674,-1101.01,0.00013885,3]
[330644989,1719684638684,-1096.53,0.00013885,3]
[330644990,1719684638693,-221.66375428,0.00013885,3]
[330644992,1719684638703,-2633.25,0.00013885,3]
[330644994,1719684638713,-630.63,0.00013885,3]
[330644995,1719684638724,-1512.14,0.00013885,3]
[330644996,1719684638734,-500.0,0.00013885,3]
[330644997,1719684638743,-1106.9,0.00013885,3]
[330644998,1719684638753,-500.0,0.00013885,3]
[330644999,1719684638763,-500.0,0.00013885,3]
[330645000,1719684638773,-2502.9,0.00013885,3]
[330645001,1719684638783,-1315.67,0.00013885,3]
[330645002,1719684638792,-500.0,0.00013885,3]
[330645003,1719684638801,-1024.63863208,0.00013885,3]
[330645004,1719684638815,-1761.05136792,0.00013885,3]
[330645005,1719684638824,-1156.52,0.00013885,3]
[330645007,1719684638834,-1937.86,0.00013885,3]
[330645008,1719684638844,-620.18,0.00013885,3]
[330645010,1719684638854,-715.62,0.00013885,3]
[330645012,1719684638864,-674.4,0.00013885,3]
[330645014,1719684638873,-1004.42,0.00013885,3]
[330645016,1719684638883,-500.0,0.00013885,3]
[330645018,1719684638893,-576.4,0.00013886,3]
[330645020,1719684638903,-533.61,0.00013886,3]
[330645022,1719684638913,-2747.79,0.00013886,3]
[330645024,1719684638923,-667.08,0.00013886,3]
[330645026,1719684638932,-1287.18,0.00013886,3]
[330645028,1719684638942,-643.53,0.00013886,3]
[330645030,1719684638951,-2926.35,0.00013886,3]
[330645032,1719684638960,-1662.94,0.00013886,3]
[330645034,1719684638970,-3739.31,0.00013886,3]
[330645036,1719684638980,-1266.46,0.00013886,3]
[330645038,1719684638990,-1282.49,0.00013886,3]
[330645040,1719684638999,-8460.85,0.00013886,3]
[330645042,1719684639010,-500.0,0.00013886,3]
[330645044,1719684639019,-4727.37,0.00013886,3]
[330645046,1719684639029,-1856.91,0.00013886,3]
[330645048,1719684639039,-2198.82,0.00013886,3]
[330645051,1719684639049,-6166.0899338,0.00013886,3]
[330645053,1719684639065,-632.62888898,0.00013886,3]
[330645059,1719684639113,-193.54117722,0.00013886,3]
[330645060,1719684639122,-500.0,0.00013886,3]
[330645063,1719684639132,-971.15882278,0.00013886,3]
[330645065,1719684639144,-666.53,0.00013886,3]
[330645067,1719684639156,-300.001004,0.00013886,3]
[330645071,1719684639184,-612.14017322,0.00013886,3]
[330645073,1719684639194,-455.90762911,0.00013886,3]
[330645075,1719684639204,-422.38870654,0.00013886,3]
[330645077,1719684639216,-77.61129346,0.00013886,3]
[330645079,1719684639227,-276.61921998,0.00013886,3]
[330645111,1719684640160,-5097.93078002,0.00013886,3]
[330645112,1719684640169,-881.6,0.00013886,3]
[330645113,1719684640180,-500.0,0.00013886,3]
[330645114,1719684640190,-1647.52,0.00013886,3]
[330645115,1719684640199,-4393.8,0.00013886,3]
[330645116,1719684640209,-589.93,0.00013886,3]
[330645117,1719684640219,-500.0,0.00013886,3]
[330645118,1719684640228,-3248.33,0.00013886,3]
[330645119,1719684640237,-500.0,0.00013886,3]
[330645120,1719684640247,-2604.58375891,0.00013886,3]
[330645121,1719684640258,-832.89624109,0.00013886,3]
[330645122,1719684640268,-2176.78,0.00013886,3]
[330645123,1719684640278,-772.85,0.00013886,3]
[330645124,1719684640287,-2354.47,0.00013886,3]
[330645125,1719684640296,-4505.2,0.00013886,3]
[330645126,1719684640306,-2387.16,0.00013886,3]
[330645127,1719684640316,-2992.31918371,0.00013886,3]
[330645128,1719684640424,-48265.93081629,0.00013886,3]
[330645129,1719684640433,-2894.86,0.00013886,3]
[330645130,1719684640442,-4332.33,0.00013886,3]
[330645131,1719684640452,-1000.0,0.00013886,3]
[330645132,1719684640461,-2327.82,0.00013886,3]
[330645133,1719684640471,-1988.81,0.00013886,3]
[330645134,1719684640482,-1762.91,0.00013886,3]
[330645135,1719684640491,-809.09,0.00013886,3]
[330645136,1719684640501,-987.42,0.00013886,3]
[330645137,1719684640511,-2632.29,0.00013886,3]
[330645138,1719684640524,-1420.43,0.00013886,3]
[330645139,1719684640534,-2002.78,0.00013886,3]
[330645140,1719684640544,-2541.61,0.00013886,3]
[330645141,1719684640553,-1707.32,0.00013886,3]
[330645142,1719684640566,-500.0,0.00013886,3]
[330645143,1719684640575,-500.0,0.00013886,3]
[330645144,1719684640585,-1671.02,0.00013886,3]
[330645145,1719684640595,-2253.32,0.00013886,3]
[330645146,1719684640607,-7158.8,0.00013886,3]
[330645147,1719684640617,-2573.45,0.00013886,3]
[330645148,1719684640627,-3573.46,0.00013886,3]
[330645149,1719684640636,-2585.77,0.00013886,3]
[330645150,1719684640646,-1581.95,0.00013886,3]
[330645151,1719684640656,-6648.79,0.00013886,3]
[330645152,1719684640665,-740.5,0.00013886,3]
[330645153,1719684640674,-1772.14,0.00013886,3]
[330645154,1719684640684,-2181.57,0.00013886,3]
[330645155,1719684640694,-1084.09,0.00013886,3]
[330645156,1719684640704,-500.0,0.00013886,3]
[330645157,1719684640714,-2409.16,0.00013886,3]
[330645158,1719684640724,-7779.27,0.00013886,3]
[330645159,1719684640734,-500.0,0.00013886,3]
[330645160,1719684640744,-500.0,0.00013886,3]
[330645161,1719684640754,-1156.61,0.00013886,3]
[330645162,1719684640764,-3207.79,0.00013886,3]
[330645163,1719684640773,-5639.53,0.00013886,3]
[330645164,1719684640783,-1028.08,0.00013886,3]
[330645165,1719684640793,-2019.89,0.00013886,3]
[330645166,1719684640803,-2858.08,0.00013886,3]
[330645167,1719684640813,-1778.29,0.00013886,3]
[330645168,1719684640822,-1677.29,0.00013886,3]
[330645169,1719684640832,-1561.23,0.00013886,3]
[330645170,1719684640841,-1764.19,0.00013886,3]
[330645171,1719684640851,-1655.39,0.00013886,3]
[330645172,1719684640861,-500.0,0.00013886,3]
[330645173,1719684640871,-877.67,0.00013886,3]
[330645174,1719684640881,-8283.48,0.00013886,3]
[330645175,1719684640891,-500.0,0.00013886,3]
[330645176,1719684640900,-1166.33,0.00013886,3]
[330645177,1719684640910,-2307.27,0.00013886,3]
[330645178,1719684640919,-4239.79,0.00013886,3]
[330645179,1719684640929,-3583.03,0.00013886,3]
[330645180,1719684640939,-500.0,0.00013886,3]
[330645181,1719684640948,-2627.63,0.00013886,3]
[330645182,1719684640958,-1300.12,0.00013886,3]
[330645183,1719684640968,-1338.31,0.00013886,2]
[330645184,1719684640977,-2697.28,0.00013886,3]
[330645185,1719684640987,-2190.42,0.00013886,3]
[330645186,1719684640997,-3945.89,0.00013886,3]
[330645187,1719684641006,-1923.62,0.00013886,3]
[330645188,1719684641016,-500.0,0.00013886,3]
[330645189,1719684641026,-500.0,0.00013887,3]
[330645190,1719684641036,-500.0,0.00013887,3]
[330645191,1719684641046,-500.0,0.00013887,3]
[330645192,1719684641058,-1297.28,0.00013887,3]
[330645193,1719684641068,-1654.07,0.00013887,3]
[330645194,1719684641078,-500.0,0.00013887,3]
[330645195,1719684641088,-500.0,0.00013887,3]
[330645196,1719684641097,-500.0,0.00013887,3]
[330645197,1719684641107,-1137.37,0.00013887,3]
[330645198,1719684641119,-963.71,0.00013887,3]
[330645199,1719684641129,-500.0,0.00013887,3]
[330645200,1719684641138,-612.08,0.00013887,3]
[330645201,1719684641147,-646.75,0.00013887,3]
[330645202,1719684641157,-500.0,0.00013887,3]
[330645203,1719684641167,-500.0,0.00013887,3]
[330645204,1719684641176,-781.73,0.00013887,3]
[330645205,1719684641186,-717.38,0.00013887,3]
[330645206,1719684641195,-500.0,0.00013887,3]
[330645207,1719684641204,-1210.97,0.00013887,3]
[330645208,1719684641213,-1274.16,0.00013887,3]
[330645209,1719684641223,-1050.24,0.00013887,3]
[330645210,1719684641232,-500.0,0.00013887,3]
[330645211,1719684641242,-1630.27,0.00013887,3]
[330645212,1719684641253,-500.0,0.00013887,3]
[330645213,1719684641262,-500.0,0.00013887,3]
[330645214,1719684641272,-500.0,0.00013887,3]
[330645215,1719684641282,-1424.96,0.00013887,3]
[330645216,1719684641291,-500.0,0.00013887,3]
[330645217,1719684641301,-500.0,0.00013887,3]
[330645218,1719684641313,-500.0,0.00013887,3]
[330645219,1719684641322,-712.48,0.00013887,3]
[330645220,1719684641331,-1268.31,0.00013887,3]
[330645221,1719684641344,-500.0,0.00013887,3]
[330645222,1719684641354,-1507.24,0.00013887,3]
[330645223,1719684641363,-851.35,0.00013887,3]
[330645224,1719684641373,-1013.52,0.00013887,3]
[330645225,1719684641382,-739.44,0.00013887,3]
[330645226,1719684641393,-500.0,0.00013887,3]
[330645227,1719684641402,-869.23,0.00013887,3]
[330645228,1719684641412,-500.0,0.00013887,3]
[330645229,1719684641421,-500.0,0.00013887,3]
[330645230,1719684641431,-1612.7,0.00013887,3]
[330645231,1719684641440,-928.19,0.00013887,3]
[330645232,1719684641449,-1287.17,0.00013887,3]
[330645233,1719684641459,-500.0,0.00013887,3]
[330645234,1719684641469,-621.62,0.00013887,3]
[330645235,1719684641479,-532.98,0.00013887,3]
[330645236,1719684641489,-1190.37,0.00013887,3]
[330645237,1719684641498,-589.78,0.00013887,3]
[330645238,1719684641509,-500.0,0.00013887,3]
[330645239,1719684641521,-500.0,0.00013887,3]
[330645240,1719684641531,-500.0,0.00013887,3]
[330645241,1719684641540,-581.13,0.00013887,3]
[330645242,1719684641550,-500.0,0.00013887,3]
[330645243,1719684641564,-545.25,0.00013887,3]
[330645244,1719684641574,-564.95,0.00013887,3]
[330645245,1719684641583,-1219.26,0.00013887,3]
[330645246,1719684641592,-1152.18,0.00013887,3]
[330645247,1719684641604,-1391.81,0.00013887,3]
[330645248,1719684641616,-500.0,0.00013887,3]
[330645249,1719684641626,-500.0,0.00013887,3]
[330645250,1719684641635,-500.0,0.00013887,3]
[330645251,1719684641645,-500.0,0.00013887,3]
[330645252,1719684641654,-550.87662455,0.00013887,3]
[330645253,1719684641664,-500.0,0.00013887,3]
[330645254,1719684641673,-698.08,0.00013887,3]
[330645255,1719684641682,-1744.62,0.00013887,3]
[330645256,1719684641691,-1467.92,0.00013887,3]
[330645257,1719684641700,-364.48561022,0.00013887,3]
[330645258,1719684641710,-500.0,0.00013887,3]
[330645259,1719684641718,-500.0,0.00013887,3]
[330645260,1719684641727,-500.0,0.00013887,3]
[330645261,1719684641737,-500.0,0.00013887,3]
[330645262,1719684641746,-500.0,0.00013887,3]
[330645263,1719684641756,-775.92,0.00013887,3]
[330645264,1719684641767,-500.0,0.00013887,3]
[330645265,1719684641776,-500.0,0.00013887,3]
[330645266,1719684641785,-932.41,0.00013887,3]
[330645267,1719684641794,-500.0,0.00013887,3]
[330645268,1719684641804,-500.0,0.00013887,3]
[330645269,1719684641820,-500.0,0.00013887,3]
[330645270,1719684641829,-500.0,0.00013887,3]
[330645271,1719684641838,-500.0,0.00013887,3]
[330645272,1719684641847,-562.2,0.00013887,3]
[330645273,1719684641856,-500.0,0.00013887,3]
[330645274,1719684641864,-641.84,0.00013887,3]
[330645275,1719684641873,-500.0,0.00013887,3]
[330645276,1719684641882,-500.0,0.00013887,3]
[330645277,1719684641891,-500.0,0.00013887,3]
[330645278,1719684641899,-554.05842576,0.00013887,3]
[330645279,1719684641908,-500.0,0.00013887,3]
[330645280,1719684641918,-500.0,0.00013887,3]
[330645281,1719684641927,-500.0,0.00013887,3]
[330645282,1719684641937,-671.4,0.00013887,3]
[330645283,1719684641946,-500.0,0.00013887,3]
[330645284,1719684641955,-500.0,0.00013887,3]
[330645285,1719684641964,-1309.04,0.00013887,3]
[330645286,1719684641973,-871.19,0.00013887,3]
[330645287,1719684641982,-531.27,0.00013887,3]
[330645288,1719684641991,-500.0,0.00013887,3]
[330645289,1719684642000,-958.24,0.00013887,3]
[330645290,1719684642010,-500.0,0.00013887,3]
[330645291,1719684642019,-500.0,0.00013887,3]
[330645292,1719684642028,-1124.8,0.00013887,3]
[330645293,1719684642038,-500.0,0.00013887,3]
[330645294,1719684642048,-500.0,0.00013887,3]
[330645295,1719684642058,-500.0,0.00013887,3]
[330645296,1719684642067,-623.63,0.00013887,3]
[330645297,1719684642076,-500.0,0.00013887,3]
[330645298,1719684642085,-566.92,0.00013887,3]
[330645299,1719684642094,-500.0,0.00013887,3]
[330645300,1719684642103,-1640.85,0.00013887,3]
[330645301,1719684642112,-712.19,0.00013887,3]
[330645302,1719684642122,-700.23,0.00013887,3]
[330645303,1719684642131,-752.62,0.00013887,3]
[330645304,1719684642140,-500.0,0.00013887,3]
[330645305,1719684642150,-500.0,0.00013887,3]
[330645306,1719684642159,-500.0,0.00013887,3]
[330645307,1719684642168,-681.89,0.00013887,3]
[330645308,1719684642177,-2500.0,0.00013887,3]
[330645309,1719684642186,-1628.49,0.00013887,3]
[330645310,1719684642195,-500.0,0.00013887,3]
[330645311,1719684642205,-500.0,0.00013887,3]
[330645312,1719684642214,-1230.38,0.00013887,3]
[330645313,1719684642225,-500.0,0.00013887,3]
[330645314,1719684642235,-500.0,0.00013887,3]
[330645315,1719684642246,-1042.57,0.00013887,3]
[330645316,1719684642256,-660.35,0.00013887,3]
[330645317,1719684642266,-500.0,0.00013887,3]
[330645318,1719684642277,-697.11,0.00013887,3]
[330645319,1719684642286,-500.0,0.00013887,3]
[330645320,1719684642296,-566.99,0.00013887,3]
[330645321,1719684642306,-500.0,0.00013887,3]
[330645322,1719684642316,-500.0,0.00013887,3]
[330645323,1719684642325,-500.0,0.00013887,3]
[330645324,1719684642334,-500.0,0.00013887,3]
[330645325,1719684642344,-500.0,0.00013887,3]
[330645326,1719684642353,-500.0,0.00013887,3]
[330645327,1719684642363,-500.0,0.00013887,3]
[330645328,1719684642372,-500.0,0.00013887,3]
[330645329,1719684642381,-1130.3,0.00013887,3]
[330645330,1719684642390,-522.92,0.00013887,3]
[330645331,1719684642399,-500.0,0.00013887,3]
[330645332,1719684642408,-500.0,0.00013887,3]
[330645333,1719684642418,-856.69,0.00013887,3]
[330645334,1719684642428,-500.0,0.00013887,3]
[330645335,1719684642438,-500.0,0.00013887,3]
[330645336,1719684642448,-643.86,0.00013887,3]
[330645337,1719684642459,-717.88,0.00013887,3]
[330645338,1719684642470,-1022.13,0.00013887,3]
[330645339,1719684642481,-1448.03,0.00013887,3]
[330645340,1719684642491,-500.0,0.00013887,3]
[330645341,1719684642501,-500.0,0.00013887,3]
[330645342,1719684642511,-1690.07,0.00013887,3]
[330645343,1719684642525,-500.0,0.00013887,3]
[330645344,1719684642535,-500.0,0.00013887,3]
[330645345,1719684642544,-250.0,0.00013887,3]
[330645346,1719684642556,-299.15457753,0.00013887,3]
[330645347,1719684642566,-840.1,0.00013887,3]
[330645348,1719684642576,-500.0,0.00013887,3]
[330645349,1719684642585,-534.6,0.00013887,3]
[330645350,1719684642595,-500.0,0.00013887,3]
[330645351,1719684642606,-824.94,0.00013887,3]
[330645352,1719684642615,-500.0,0.00013887,3]
[330645353,1719684642624,-500.0,0.00013887,2]
[330645354,1719684642634,-500.0,0.00013887,3]
[330645355,1719684642644,-500.0,0.00013887,3]
[330645356,1719684642653,-268.38265805,0.00013887,3]
[330645357,1719684642670,-231.61734195,0.00013887,3]
[330645358,1719684642679,-500.0,0.00013887,3]
[330645359,1719684642689,-500.0,0.00013887,3]
[330645360,1719684642698,-1395.91,0.00013887,3]
[330645362,1719684642707,-500.0,0.00013887,3]
[330645363,1719684642717,-912.12,0.00013887,3]
[330645364,1719684642726,-1415.47,0.00013887,3]
[330645365,1719684642735,-1838.73,0.00013887,3]
[330645367,1719684642743,-563.9,0.00013887,3]
[330645369,1719684642752,-500.0,0.00013887,3]
[330645370,1719684642762,-500.0,0.00013887,3]
[330645371,1719684642772,-500.0,0.00013887,3]
[330645372,1719684642782,-500.0,0.00013887,3]
[330645373,1719684642791,-500.0,0.00013887,3]
[330645374,1719684642800,-500.0,0.00013887,3]
[330645375,1719684642811,-500.0,0.00013887,3]
[330645376,1719684642820,-500.0,0.00013887,3]
[330645377,1719684642830,-690.07,0.00013887,3]
[330645378,1719684642839,-671.63,0.00013887,3]
[330645379,1719684642848,-868.04,0.00013887,3]
[330645380,1719684642857,-500.0,0.00013887,3]
[330645382,1719684642866,-500.0,0.00013887,3]
[330645384,1719684642876,-1516.0,0.00013887,3]
[330645386,1719684642885,-1203.24,0.00013887,3]
[330645387,1719684642894,-738.5,0.00013887,3]
[330645388,1719684642904,-500.0,0.00013887,3]
[330645389,1719684642913,-500.0,0.00013887,3]